{"text_format":"1","workbook":"xlsx","n_sheets":6,"sheets":["Intropagina","Home","Bereken","Scenario's","Uitleg","Data kinderopvangtoeslag"],"not_rendered":{"charts":6,"images":19,"macros":1,"external_links":0,"defined_names":1,"comments":2,"pivot_tables":0},"unopened":[],"bounds":{"document_bytes":16777216,"sheet_cells":100000,"rows_first":2000,"rows_last":500,"rows_between":2000,"halvings":0,"cell_chars":16384,"cell_head_chars":4096},"cells_cut":0,"cells_raw":0,"read":"whole","date_system":"1900"}

{"sheet":"Intropagina","index":0,"n_rows":26,"n_cols":12,"rows_kept":26,"cut":false,"hidden":true,"merged":[[8,11,8,20],[9,11,9,20],[11,11,11,20],[24,1,25,8],[24,11,24,20],[25,11,25,20]]}
[]
[]
[]
[]
[]
[]
[]
[]
[null,null,null,null,null,null,null,null,null,null,null,"Deze template werkt alleen met toestemming"]
[null,null,null,null,null,null,null,null,null,null,null,"Keur de beveiligingsmelding goed voor gebruik"]
[]
[null,null,null,null,null,null,null,null,null,null,null," Als je dit bericht ziet boven aan het scherm, volg onderstaande instructie voor goedkeuring"]
[]
[]
[]
[]
[]
[]
[]
[]
[]
[]
[]
[]
[null,"Klik op onderstaande afbeelding voor visuele ondersteuning!",null,null,null,null,null,null,null,null,null,"Als je bij het openen van het document deze melding krijgt en op 'Macro's uitschakelen' klikt:"]
[null,null,null,null,null,null,null,null,null,null,null,"Sluit en open dit document opnieuw en klik op de knop 'Macro's inschakelen'."]

{"sheet":"Home","index":1,"n_rows":38,"n_cols":10,"rows_kept":38,"cut":false,"hidden":true,"merged":[[37,5,38,18],[6,5,8,9],[13,5,13,9],[15,6,15,9],[16,6,16,9]]}
[]
[]
[]
[]
[]
[]
[null,null,null,null,null,"Kinderopvangtoeslag template"]
[]
[]
[]
[]
[]
[]
[null,null,null,null,null,"Wat is jouw huidige situatie?   Vul hier onder jouw gegevens in!"]
[null,null,null,null,null,"Algemene gegevens"]
[null,null,null,null,null,"Kinderen",1]
[null,null,null,null,null,"WOZ-waarde ",0]
[null,null,null,null,null,"Persoonsgebonden gegevens"]
[null,null,null,null,null,"Naam A","Naam",null,"Naam B","Naam"]
[null,null,null,null,null,"Werksituatie","Loondienst",null,"Werksituatie","ZZP"]
[null,null,null,null,null,"Loon/Winst",0,null,"Loon/Winst",0]
[]
[]
[]
[]
[]
[]
[]
[]
[]
[]
[]
[]
[]
[]
[]
[]
[null,null,null,null,null,"Disclaimer!"]

{"sheet":"Bereken","index":2,"n_rows":37,"n_cols":18,"rows_kept":37,"cut":false,"hidden":true,"merged":[[2,4,4,9],[5,4,5,9],[36,11,38,14],[36,4,38,5],[33,4,34,4],[33,7,34,7],[31,9,32,9],[33,8,34,8],[33,9,34,9],[36,6,38,9],[15,11,15,12],[22,11,22,12],[29,11,29,12],[36,15,38,16],[8,11,8,12],[8,3,8,9],[14,3,14,9],[20,3,20,9],[25,3,25,9],[16,5,16,9],[17,5,17,9],[18,5,18,9],[31,5,32,5],[31,6,32,6],[31,7,32,7],[31,8,32,8],[33,5,34,5],[33,6,34,6],[31,4,32,4]]}
[]
[]
[null,null,null,null,"Hoeveel toeslag krijg ik?"]
[]
[]
[null,null,null,null,"Vul hier jouw gegevens in voor de berekening van jouw kinderopvangtoeslag percentage en maandbedrag"]
[]
[]
[null,null,null,"Algemene gegevens voor berekening % kinderopvangtoeslag",null,null,null,null,null,null,null,{"$f":"F10","v":"Naam Kind 1"}]
[null,null,null,null,"Vul hier  rechts de namen van jouw kinderen in!","Naam Kind 1","Naam Kind 2","Naam Kind 3","Naam Kind 4","< Invullen"]
[null,null,null,null,"Soort opvang","Dagopvang",null,null,null,"< Selecteer",null,null,null,null,null,null,null,{"$f":"F32","v":0}]
[null,null,null,null,"Opvangkosten die u daadwerkelijk betaalt per uur",0,null,null,null,"< Invullen",null,null,null,null,null,null,null,{"$f":"100%-R11","v":1}]
[null,null,null,null,"Aantal uren kinderopvang per maand",0,null,null,null,"< Invullen"]
[null,null,null,null,null,{"$f":"IF(F13<12500,0,IF(AND(F13>12500,F13<25000),(F13*0.1%),IF(AND(F13>25000,F13<50000),(F13*0.2%),IF(AND(F13>50000,F13<75000),(F13*0.25%),IF(AND(F13>75000,F13<1200000),(F13*0.35%),IF(F13>1200000,(4655+((F13-1330000)*2.35%)),0))))))","v":0},20]
[null,null,null,"Gegevens voor berekening"]
[null,null,null,null,null,null,null,null,null,null,null,{"$f":"G10","v":"Naam Kind 2"}]
[null,null,null,null,"Totaal inkomen uit arbeid",{"$f":"'Scenario''s'!F26+'Scenario''s'!F27+'Scenario''s'!G26+'Scenario''s'!G27","v":0}]
[null,null,null,null,"Totaal inkomen uit eigen woning",{"$f":"F20","v":0}]
[null,null,null,null,"Toetsingsinkomen",{"$f":"F17+F18","v":0}]
[null,null,null,null,null,{"$f":"IF(AND(Home!G17>12500,Home!G17<25000),(Home!G17*0.1%),IF(AND(Home!G17>25000,Home!G17<50000),(Home!G17*0.2%),IF(AND(Home!G17>50000,Home!G17<75000),(Home!G17*0.25%),IF(AND(Home!G17>75000,Home!G17<1330000),(Home!G17*0.35%),IF(Home!G17>1310000,(4655+((Home!G17-1330000)*2.35%)),0)))))","v":0},null,null,null,null,null,null,null,null,null,null,null,{"$f":"G32","v":""}]
[null,null,null,"Berekening",null,null,null,null,null,null,null,null,null,null,null,null,null,{"$f":"100%-R20","v":{"$error":"#VALUE!"}}]
[null,null,null,null,null,{"$f":"F10","v":"Naam Kind 1"},{"$f":"G10","v":"Naam Kind 2"},{"$f":"H10","v":"Naam Kind 3"},{"$f":"I10","v":"Naam Kind 4"}]
[null,null,null,null,"Werkelijke uurprijs",{"$f":"F12","v":0},{"$f":"G12","v":0},{"$f":"H12","v":0},{"$f":"I12","v":0},"Euro",null,{"$f":"H10","v":"Naam Kind 3"}]
[null,null,null,null,"Maximale uurprijs vastgesteld door overheid",{"$f":"IF(F11=\"Dagopvang\",'Data kinderopvangtoeslag'!$C$4,IF(F11=\"Buitenschoolse opvang\",'Data kinderopvangtoeslag'!$C$5,IF(F11=\"Gastouderopvang\",'Data kinderopvangtoeslag'!$C$6,0)))","v":10.71},{"$f":"IF(G11=\"Dagopvang\",'Data kinderopvangtoeslag'!$C$4,IF(G11=\"Buitenschoolse opvang\",'Data kinderopvangtoeslag'!$C$5,IF(G11=\"Gastouderopvang\",'Data kinderopvangtoeslag'!$C$6,0)))","v":0},{"$f":"IF(H11=\"Dagopvang\",'Data kinderopvangtoeslag'!$C$4,IF(H11=\"Buitenschoolse opvang\",'Data kinderopvangtoeslag'!$C$5,IF(H11=\"Gastouderopvang\",'Data kinderopvangtoeslag'!$C$6,0)))","v":0},{"$f":"IF(I11=\"Dagopvang\",'Data kinderopvangtoeslag'!$C$4,IF(I11=\"Buitenschoolse opvang\",'Data kinderopvangtoeslag'!$C$5,IF(I11=\"Gastouderopvang\",'Data kinderopvangtoeslag'!$C$6,0)))","v":0},"Euro"]
[null,null,null,null,"Aantal uur kinderopvang per maand (max 230 uur)",{"$f":"IF(F13>230,230,F13)","v":0},{"$f":"IF(G13>230,230,G13)","v":0},0,0,"Uur"]
[null,null,null,"Berekening bedrag",null,null,null,null,null,null,null,null,null,null,null,null,null,{"$f":"H32","v":""}]
[null,null,null,null,"Totale bruto opvangkosten",{"$f":"F23*F25","v":0},{"$f":"G23*G25","v":0},{"$f":"H23*H25","v":0},{"$f":"I23*I25","v":0},"Euro",null,null,null,null,null,null,null,{"$f":"100%-R26","v":{"$error":"#VALUE!"}}]
[null,null,null,null,"Bedrag dat niet meetelt voor kinderopvang",{"$f":"IF(F23>F24,((F23-F24)*F25),0)","v":0},{"$f":"IF(G23>G24,((G23-G24)*G25),0)","v":0},0,0,"Euro"]
[null,null,null,null,"Opvangkosten voor de kinderopvang",{"$f":"F27-F28","v":0},{"$f":"G27-G28","v":0},0,0,"Euro"]
[null,null,null,null,null,null,null,null,null,null,null,{"$f":"I10","v":"Naam Kind 4"}]
[null,null,null,null,"Te ontvangen",{"$f":"F10","v":"Naam Kind 1"},{"$f":"G10","v":"Naam Kind 2"},{"$f":"H10","v":"Naam Kind 3"},{"$f":"I10","v":"Naam Kind 4"},"Totaal"]
[null,null,null,null,"Opslag in %",{"$f":"IF(OR(Home!G16=1,Home!G16=2,Home!G16=3,Home!G16=4),IF($F$19=0,0,(_xlfn.XLOOKUP(Bereken!$F$19,'Data kinderopvangtoeslag'!G4:G72,'Data kinderopvangtoeslag'!H4:H72))),\"\")","v":0},{"$f":"IF(OR(Home!G16=2,Home!G16=3,Home!G16=4),IF($F$19=0,0,(_xlfn.XLOOKUP(Bereken!$F$19,'Data kinderopvangtoeslag'!G4:G72,'Data kinderopvangtoeslag'!I4:I72))),\"\")","v":""},{"$f":"IF(OR(Home!G16=3,Home!G16=4),IF($F$19=0,0,(_xlfn.XLOOKUP(Bereken!$F$19,'Data kinderopvangtoeslag'!G4:G72,'Data kinderopvangtoeslag'!I4:I72))),\"\")","v":""},{"$f":"IF(OR(Home!G16=4),IF($F$19=0,0,(_xlfn.XLOOKUP(Bereken!$F$19,'Data kinderopvangtoeslag'!G4:G72,'Data kinderopvangtoeslag'!I4:I72))),\"\")","v":""},{"$f":"SUM(F32:I32)","v":0}]
[null,null,null,null,null,null,null,null,null,null,null,null,null,null,null,null,null,{"$f":"I32","v":""}]
[null,null,null,null,"Bedrag in €",{"$f":"IF(OR(Home!$G$16=1,Home!$G$16=2,Home!$G$16=3,Home!$G$16=4),IF($F$23>$F$24,$F$24,$F$23)*$F$25*F32,\"\")","v":0},{"$f":"IF(OR(Home!$G$16=2,Home!$G$16=3,Home!$G$16=4),IF($G$23>$G$24,$G$24,$G$23)*$G$25*G32,\"\")","v":""},{"$f":"IF(OR(Home!$G$16=3,Home!$G$16=4),IF($H$23>$H$24,$H$24,$H$23)*$H$25*H32,\"\")","v":""},{"$f":"IF(OR(Home!$G$16=4),IF($I$23>$I$24,$I$24,$I$23)*$I$25*I32,\"\")","v":""},{"$f":"SUM(F34:I35)","v":0},null,null,null,null,null,null,null,{"$f":"100%-R33","v":{"$error":"#VALUE!"}}]
[]
[]
[null,null,null,null,"Toeslag per maand alle kinderen",null,{"$f":"J34","v":0},null,null,null,null,"Gemiddelde % kinderopvangtoeslag",null,null,null,{"$f":"IFERROR(AVERAGE(F32:I33),\"\")","v":0}]

{"sheet":"Scenario's","index":3,"n_rows":43,"n_cols":14,"rows_kept":43,"cut":false,"hidden":true,"merged":[[16,3,16,8],[33,10,33,15],[34,13,34,15],[34,10,34,12],[2,4,4,8],[5,4,5,8],[8,3,8,8],[8,10,8,15],[17,7,17,8],[17,5,17,6],[31,5,31,6],[31,7,31,8],[33,5,33,6],[33,7,33,8],[37,5,37,6],[37,7,37,8],[34,5,34,6],[35,5,35,6],[34,7,34,8],[35,7,35,8],[38,5,38,6],[39,5,39,6],[40,5,40,6],[41,5,41,6],[42,5,42,6],[38,7,38,8],[39,7,39,8],[40,7,40,8],[41,7,41,8],[42,7,42,8]]}
[]
[]
[null,null,null,null,"Scenario Vergelijking"]
[]
[]
[null,null,null,null,"Pas jouw gegevens aan en ontdek direct de impact op jouw kinderopvangtoeslag "]
[]
[]
[null,null,null,"Potentiële veranderingen",null,null,null,null,null,null,"Situatie kinderopvangtoeslag per kind in %"]
[null,null,null,null,null,{"$f":"Home!G19","v":"Naam"},null,{"$f":"Home!J19","v":"Naam"}]
[null,null,null,null,"Aftrekbare rente en kosten eigen woning",0,"< Invullen",{"$f":"F10","v":"Naam"},"< Invullen"]
[null,null,null,null,"KIA Investeringen (excl. BTW)",0,"< Invullen",0,"< Invullen"]
[null,null,null,null,"Kosten arbeidsongeschiktheidsverzekering",0,"< Invullen",0,"< Invullen"]
[null,null,null,null,"Kosten lijfrenteproduct (pensioenbeleggen)",null,"< Invullen",null,"< Invullen"]
[null,null,null,null,"Voldoet u aan  het urencriterium (1.225 uren)","Nee","<Selecteer","Nee","<Selecteer"]
[null,null,null,null,"Heeft u recht op startersaftrek?","Nee","<Selecteer","Nee","<Selecteer"]
[null,null,null,"Scenario vergelijking"]
[null,null,null,null,"Scenario","Huidige situatie",null,"Situatie na wijzigingen"]
[null,null,null,null,null,{"$f":"F10","v":"Naam"},{"$f":"H10","v":"Naam"},{"$f":"F10","v":"Naam"},{"$f":"H10","v":"Naam"}]
[null,null,null,null,"Winst voor ondernemersaftrek",{"$f":"IF(Home!G20=\"zzp\",Home!G21,0)","v":0},{"$f":"IF(Home!J20=\"zzp\",Home!J21,0)","v":0},{"$f":"F20","v":0},{"$f":"G20","v":0}]
[null,null,null,null,"Zelfstandigenaftrek",{"$f":"0","v":0},{"$f":"0","v":0},{"$f":"IF(AND(Home!G20=\"zzp\",F15=\"Ja\"),2123,0)","v":0},{"$f":"IF(AND(Home!J20=\"zzp\",H15=\"Ja\"),2123,0)","v":0}]
[null,null,null,null,"Startersaftrek",{"$f":"0","v":0},{"$f":"0","v":0},{"$f":"IF(AND(Home!G20=\"zzp\",F16=\"Ja\"),2470,0)","v":0},{"$f":"IF(AND(Home!J20=\"zzp\",H16=\"Ja\"),2470,0)","v":0}]
[null,null,null,null,"Belastbare winst voor vrijstelling",{"$f":"F20","v":0},{"$f":"G20","v":0},{"$f":"IFERROR(H20-H21-H22,0)","v":0},{"$f":"IFERROR(I20-I21-I22,0)","v":0}]
[null,null,null,null,"MKB-winstvrijstelling (12,7%)",{"$f":"IFERROR(F23*12.7%,0)","v":0},{"$f":"IFERROR(G23*12.7%,0)","v":0},{"$f":"IFERROR(H23*12.7%,\"\")","v":0},{"$f":"IFERROR(I23*12.7%,\"\")","v":0}]
[null,null,null,null,"Kleine Investerings Aftrek",{"$f":"0","v":0},{"$f":"0","v":0},{"$f":"IF(Home!G20=\"zzp\",IF(F12<2801,0,IF(AND(F12>2801,F12<69766),F12*0.28,IF(AND(F12>69765,F12<129195),19535,IF(AND(F12>129194,F12<387581),19535-((F12-129195)*0.0756),IF(F12>387580,0,\"\"))))),0)","v":0},{"$f":"IF(Home!J20=\"zzp\",IF(H12<2801,0,IF(AND(H12>2801,H12<69766),H12*0.28,IF(AND(H12>69765,H12<129195),19535,IF(AND(H12>129194,H12<387581),19535-((H12-129195)*0.0756),IF(H12>387580,0,\"\"))))),0)","v":0}]
[null,null,null,null,"Belastbaar Inkomen",{"$f":"IFERROR(F23-F24,\"\")","v":0},{"$f":"IFERROR(G23-G24,\"\")","v":0},{"$f":"IFERROR(H23-H24-H25,\"\")","v":0},{"$f":"IFERROR(I23-I24-I25,\"\")","v":0}]
[null,null,null,null,"Inkomsten uit werk",{"$f":"IF(AND(Home!G20=\"Loondienst\"),Home!G21,IF(Home!G20=\"DGA\",Home!G21,0))","v":0},{"$f":"IF(AND(Home!J20=\"Loondienst\"),Home!J21,IF(Home!J20=\"DGA\",Home!J21,0))","v":0},{"$f":"IF(AND(Home!G20=\"Loondienst\"),F27,IF(Home!G20=\"DGA\",F27,0))","v":0},{"$f":"IF(AND(Home!J20=\"Loondienst\"),G27,IF(Home!J20=\"DGA\",G27,0))","v":0}]
[null,null,null,null,"inkomsten uit eigen woning (eigenwoningforfait)",{"$f":"Bereken!F18","v":0},{"$f":"F10","v":"Naam"},{"$f":"F28","v":0},{"$f":"F10","v":"Naam"}]
[null,null,null,null,"Aftrekbare rente en kosten eigen woning",{"$f":"0","v":0},{"$f":"F10","v":"Naam"},{"$f":"F11","v":0},{"$f":"F10","v":"Naam"}]
[null,null,null,null,"Uitgaven voor inkomstenvoorzieningen",{"$f":"0","v":0},{"$f":"0","v":0},{"$f":"F13+F14","v":0},{"$f":"H13+H14","v":0}]
[null,null,null,null,"Toetsingsinkomen",{"$f":"IF(Home!G20=\"ZZP\",'Scenario''s'!F26+'Scenario''s'!F28-'Scenario''s'!F29-'Scenario''s'!F30,'Scenario''s'!F27+'Scenario''s'!F28-'Scenario''s'!F29-'Scenario''s'!F30)","v":0},{"$f":"IF(Home!J20=\"ZZP\",G26-G30,G27-G30)","v":0},{"$f":"IF(Home!G20=\"ZZP\",H26+H28-H29-H30,H27+H28-H29-H30)","v":0},{"$f":"IF(Home!J20=\"ZZP\",I26-I30,I27-I30)","v":0}]
[null,null,null,null,"Gezamenlijk Toetsingsinkomen",{"$f":"G33","v":0},null,{"$f":"I33","v":0}]
[null,null,null,null,null,null,{"$f":"F31+G31","v":0},null,{"$f":"H31+I31","v":0}]
[null,null,null,null,"te ontvangen %","Huidige situatie",null,"Situatie na wijzigingen",null,{"$f":"IFERROR(H35-F35,0)","v":0},"Verschil in opslag (% en €)"]
[null,null,null,null,"Kind 1",{"$f":"IF(OR(Home!G16=1,Home!G16=2,Home!G16=3,Home!G16=4),(_xlfn.XLOOKUP(Bereken!$F$19,'Data kinderopvangtoeslag'!G4:G72,'Data kinderopvangtoeslag'!H4:H72)),0)","v":0.96},null,{"$f":"IF(OR(Home!G16=1,Home!G16=2,Home!G16=3,Home!G16=4),(_xlfn.XLOOKUP(H32,'Data kinderopvangtoeslag'!J4:J72,'Data kinderopvangtoeslag'!H4:H72)),0)","v":0.96},null,{"$f":"IFERROR(H36-F36,0)","v":0},"Totaal verschil in %",null,null,"Totaal bedrag per maand"]
[null,null,null,null,"Kind 2 of meerdere kinderen",{"$f":"IF(OR(Home!G16=1,Home!G16=2,Home!G16=3,Home!G16=4),(_xlfn.XLOOKUP(Bereken!$F$19,'Data kinderopvangtoeslag'!G4:G72,'Data kinderopvangtoeslag'!I4:I72)),0)","v":0.96},null,{"$f":"IF(OR(Home!G16=1,Home!G16=2,Home!G16=3,Home!G16=4),(_xlfn.XLOOKUP(I33,'Data kinderopvangtoeslag'!J4:J72,'Data kinderopvangtoeslag'!I4:I72)),0)","v":0.96},null,{"$f":"IF(SUM(J34:J35)>0,\"+\" & TEXT(SUM(J34:J35)*100,\"0,00\") & \"%\",IF(SUM(J34:J35)<0,\"-\" & TEXT(ABS(SUM(J34:J35)*100),\"0,00\") & \"%\",\"0,00%\"))","v":"0,00%"}]
[null,null,null,null,null,{"$f":"F35","v":0.96},{"$f":"F36","v":0.96},{"$f":"H35","v":0.96},{"$f":"H36","v":0.96}]
[null,null,null,null,"te ontvangen bedrag","Huidige situatie",null,"Situatie na wijzigingen"]
[null,null,null,null,{"$f":"Bereken!F10","v":"Naam Kind 1"},{"$f":"Bereken!F34","v":0},null,{"$f":"IF(OR(Home!$G$16=1,Home!$G$16=2,Home!$G$16=3,Home!$G$16=4),IF(Bereken!F23>Bereken!F24,Bereken!F24,Bereken!F23)*Bereken!F25*H35,\"\")","v":0}]
[null,null,null,null,{"$f":"Bereken!G10","v":"Naam Kind 2"},{"$f":"Bereken!G34","v":""},null,{"$f":"IF(OR(Home!$G$16=2,Home!$G$16=3,Home!$G$16=4),IF(Bereken!G23>Bereken!G24,Bereken!G24,Bereken!G23)*Bereken!G25*H36,\"\")","v":""}]
[null,null,null,null,{"$f":"Bereken!H10","v":"Naam Kind 3"},{"$f":"Bereken!H34","v":""},null,{"$f":"IF(OR(Home!$G$16=3,Home!$G$16=4),IF(Bereken!H23>Bereken!H24,Bereken!H24,Bereken!H23)*Bereken!H25*H36,\"\")","v":""}]
[null,null,null,null,{"$f":"Bereken!I10","v":"Naam Kind 4"},{"$f":"Bereken!I34","v":""},null,{"$f":"IF(OR(Home!$G$16=4),IF(Bereken!I23>Bereken!I24,Bereken!I24,Bereken!I23)*Bereken!I25*H36,\"\")","v":""},null,{"$f":"IF(H43-F43>0,\"+\" & TEXT(H43-F43,\"€ 0,00\"),IF(H43-F43<0,\"-\" & TEXT(ABS(H43-F43),\"€ 0,00\"),\"€ 0,00\"))","v":"€ 0,00"}]
[null,null,null,null,"Totaal te ontvangen bedrag PER MAAND",{"$f":"SUM(F39:G42)","v":0},null,{"$f":"SUM(H39:I42)","v":0}]

{"sheet":"Uitleg","index":4,"n_rows":38,"n_cols":9,"rows_kept":38,"cut":false,"hidden":false,"merged":[[31,8,31,10],[31,11,31,13],[2,4,4,6],[5,4,5,6],[8,8,8,13],[8,4,8,6]]}
[]
[]
[null,null,null,null,"Scenario Vergelijking"]
[]
[]
[null,null,null,null,"Pas jouw gegevens aan en ontdek direct de impact op jouw kinderopvangtoeslag "]
[]
[]
[null,null,null,null,"Uitleg Berekening Kinderopvangtoeslag",null,null,null,"Informatie en voorwaarden kindertoeslag"]
[]
[]
[]
[]
[]
[]
[]
[]
[]
[]
[]
[]
[]
[]
[]
[]
[]
[]
[]
[]
[]
[]
[null,null,null,null,null,null,null,{"$f":"IFERROR(G32-F32,0)","v":0}]
[null,null,null,null,null,null,null,{"$f":"IFERROR(G33-F33,0)","v":0}]
[null,null,null,null,null,null,null,{"$f":"SUM(H32:H33)","v":0}]
[]
[]
[]
[null,null,null,null,null,null,null,{"$f":"G38-F38","v":0}]

{"sheet":"Data kinderopvangtoeslag","index":5,"n_rows":72,"n_cols":14,"rows_kept":72,"cut":false,"hidden":true,"merged":[]}
[]
[]
[null,"Soort opvang","Extra verhoogde maximale uurprijs voor toeslag",null,"Toesingsinkomen (gezamenlijk) vanaf","Toetsingsinkomen (tot en met)","Hulpkolom1","Percentage opslag 1ste kind","Percentage opslag 2e kind en meer","Hulpkolom 2",null,"te ontvangen %","Huidige situatie","Situatie na wijzigingen"]
[null,"Dagopvang",10.71,null,0,23211,{"$f":"IF(AND(Bereken!$F$19>='Data kinderopvangtoeslag'!E4,Bereken!$F$19<='Data kinderopvangtoeslag'!F4),Bereken!$F$19,0)","v":0},0.96,0.96,{"$f":"IF(AND('Scenario''s'!$I$33>='Data kinderopvangtoeslag'!E4,'Scenario''s'!$I$33<='Data kinderopvangtoeslag'!F4),'Scenario''s'!$I$33,0)","v":0},null,"Kind 1",{"$f":"'Scenario''s'!F37","v":0.96},{"$f":"'Scenario''s'!H37","v":0.96}]
[null,"Buitenschoolse opvang",9.52,null,23212,24756,{"$f":"IF(AND(Bereken!$F$19>='Data kinderopvangtoeslag'!E5,Bereken!$F$19<='Data kinderopvangtoeslag'!F5),Bereken!$F$19,0)","v":0},0.96,0.96,{"$f":"IF(AND('Scenario''s'!$I$33>='Data kinderopvangtoeslag'!E5,'Scenario''s'!$I$33<='Data kinderopvangtoeslag'!F5),'Scenario''s'!$I$33,0)","v":0},null,"kind 2 of meerdere kinderen",{"$f":"'Scenario''s'!G37","v":0.96},{"$f":"'Scenario''s'!I37","v":0.96}]
[null,"Gastouderopvang",8.1,null,24757,26300,{"$f":"IF(AND(Bereken!$F$19>='Data kinderopvangtoeslag'!E6,Bereken!$F$19<='Data kinderopvangtoeslag'!F6),Bereken!$F$19,0)","v":0},0.96,0.96,{"$f":"IF(AND('Scenario''s'!$I$33>='Data kinderopvangtoeslag'!E6,'Scenario''s'!$I$33<='Data kinderopvangtoeslag'!F6),'Scenario''s'!$I$33,0)","v":0}]
[null,null,null,null,26301,27848,{"$f":"IF(AND(Bereken!$F$19>='Data kinderopvangtoeslag'!E7,Bereken!$F$19<='Data kinderopvangtoeslag'!F7),Bereken!$F$19,0)","v":0},0.96,0.96,{"$f":"IF(AND('Scenario''s'!$I$33>='Data kinderopvangtoeslag'!E7,'Scenario''s'!$I$33<='Data kinderopvangtoeslag'!F7),'Scenario''s'!$I$33,0)","v":0}]
[null,null,null,null,27849,29392,{"$f":"IF(AND(Bereken!$F$19>='Data kinderopvangtoeslag'!E8,Bereken!$F$19<='Data kinderopvangtoeslag'!F8),Bereken!$F$19,0)","v":0},0.96,0.96,{"$f":"IF(AND('Scenario''s'!$I$33>='Data kinderopvangtoeslag'!E8,'Scenario''s'!$I$33<='Data kinderopvangtoeslag'!F8),'Scenario''s'!$I$33,0)","v":0}]
[null,null,null,null,29393,30939,{"$f":"IF(AND(Bereken!$F$19>='Data kinderopvangtoeslag'!E9,Bereken!$F$19<='Data kinderopvangtoeslag'!F9),Bereken!$F$19,0)","v":0},0.96,0.96,{"$f":"IF(AND('Scenario''s'!$I$33>='Data kinderopvangtoeslag'!E9,'Scenario''s'!$I$33<='Data kinderopvangtoeslag'!F9),'Scenario''s'!$I$33,0)","v":0}]
[null,null,null,null,30940,32483,{"$f":"IF(AND(Bereken!$F$19>='Data kinderopvangtoeslag'!E10,Bereken!$F$19<='Data kinderopvangtoeslag'!F10),Bereken!$F$19,0)","v":0},0.96,0.96,{"$f":"IF(AND('Scenario''s'!$I$33>='Data kinderopvangtoeslag'!E10,'Scenario''s'!$I$33<='Data kinderopvangtoeslag'!F10),'Scenario''s'!$I$33,0)","v":0}]
[null,null,null,null,32484,34025,{"$f":"IF(AND(Bereken!$F$19>='Data kinderopvangtoeslag'!E11,Bereken!$F$19<='Data kinderopvangtoeslag'!F11),Bereken!$F$19,0)","v":0},0.96,0.96,{"$f":"IF(AND('Scenario''s'!$I$33>='Data kinderopvangtoeslag'!E11,'Scenario''s'!$I$33<='Data kinderopvangtoeslag'!F11),'Scenario''s'!$I$33,0)","v":0}]
[null,null,null,null,34026,35687,{"$f":"IF(AND(Bereken!$F$19>='Data kinderopvangtoeslag'!E12,Bereken!$F$19<='Data kinderopvangtoeslag'!F12),Bereken!$F$19,0)","v":0},0.96,0.96,{"$f":"IF(AND('Scenario''s'!$I$33>='Data kinderopvangtoeslag'!E12,'Scenario''s'!$I$33<='Data kinderopvangtoeslag'!F12),'Scenario''s'!$I$33,0)","v":0}]
[null,null,null,null,35688,37346,{"$f":"IF(AND(Bereken!$F$19>='Data kinderopvangtoeslag'!E13,Bereken!$F$19<='Data kinderopvangtoeslag'!F13),Bereken!$F$19,0)","v":0},0.96,0.96,{"$f":"IF(AND('Scenario''s'!$I$33>='Data kinderopvangtoeslag'!E13,'Scenario''s'!$I$33<='Data kinderopvangtoeslag'!F13),'Scenario''s'!$I$33,0)","v":0}]
[null,null,null,null,37347,39010,{"$f":"IF(AND(Bereken!$F$19>='Data kinderopvangtoeslag'!E14,Bereken!$F$19<='Data kinderopvangtoeslag'!F14),Bereken!$F$19,0)","v":0},0.96,0.96,{"$f":"IF(AND('Scenario''s'!$I$33>='Data kinderopvangtoeslag'!E14,'Scenario''s'!$I$33<='Data kinderopvangtoeslag'!F14),'Scenario''s'!$I$33,0)","v":0}]
[null,null,null,null,39011,40670,{"$f":"IF(AND(Bereken!$F$19>='Data kinderopvangtoeslag'!E15,Bereken!$F$19<='Data kinderopvangtoeslag'!F15),Bereken!$F$19,0)","v":0},0.96,0.96,{"$f":"IF(AND('Scenario''s'!$I$33>='Data kinderopvangtoeslag'!E15,'Scenario''s'!$I$33<='Data kinderopvangtoeslag'!F15),'Scenario''s'!$I$33,0)","v":0}]
[null,null,null,null,40671,42336,{"$f":"IF(AND(Bereken!$F$19>='Data kinderopvangtoeslag'!E16,Bereken!$F$19<='Data kinderopvangtoeslag'!F16),Bereken!$F$19,0)","v":0},0.96,0.96,{"$f":"IF(AND('Scenario''s'!$I$33>='Data kinderopvangtoeslag'!E16,'Scenario''s'!$I$33<='Data kinderopvangtoeslag'!F16),'Scenario''s'!$I$33,0)","v":0}]
[null,null,null,null,42337,43998,{"$f":"IF(AND(Bereken!$F$19>='Data kinderopvangtoeslag'!E17,Bereken!$F$19<='Data kinderopvangtoeslag'!F17),Bereken!$F$19,0)","v":0},0.96,0.96,{"$f":"IF(AND('Scenario''s'!$I$33>='Data kinderopvangtoeslag'!E17,'Scenario''s'!$I$33<='Data kinderopvangtoeslag'!F17),'Scenario''s'!$I$33,0)","v":0}]
[null,null,null,null,43999,45700,{"$f":"IF(AND(Bereken!$F$19>='Data kinderopvangtoeslag'!E18,Bereken!$F$19<='Data kinderopvangtoeslag'!F18),Bereken!$F$19,0)","v":0},0.96,0.96,{"$f":"IF(AND('Scenario''s'!$I$33>='Data kinderopvangtoeslag'!E18,'Scenario''s'!$I$33<='Data kinderopvangtoeslag'!F18),'Scenario''s'!$I$33,0)","v":0}]
[null,null,null,null,45701,47403,{"$f":"IF(AND(Bereken!$F$19>='Data kinderopvangtoeslag'!E19,Bereken!$F$19<='Data kinderopvangtoeslag'!F19),Bereken!$F$19,0)","v":0},0.96,0.96,{"$f":"IF(AND('Scenario''s'!$I$33>='Data kinderopvangtoeslag'!E19,'Scenario''s'!$I$33<='Data kinderopvangtoeslag'!F19),'Scenario''s'!$I$33,0)","v":0}]
[null,null,null,null,47404,49108,{"$f":"IF(AND(Bereken!$F$19>='Data kinderopvangtoeslag'!E20,Bereken!$F$19<='Data kinderopvangtoeslag'!F20),Bereken!$F$19,0)","v":0},0.95299999999999996,0.95599999999999996,{"$f":"IF(AND('Scenario''s'!$I$33>='Data kinderopvangtoeslag'!E20,'Scenario''s'!$I$33<='Data kinderopvangtoeslag'!F20),'Scenario''s'!$I$33,0)","v":0}]
[null,null,null,null,49109,50811,{"$f":"IF(AND(Bereken!$F$19>='Data kinderopvangtoeslag'!E21,Bereken!$F$19<='Data kinderopvangtoeslag'!F21),Bereken!$F$19,0)","v":0},0.94599999999999995,0.95199999999999996,{"$f":"IF(AND('Scenario''s'!$I$33>='Data kinderopvangtoeslag'!E21,'Scenario''s'!$I$33<='Data kinderopvangtoeslag'!F21),'Scenario''s'!$I$33,0)","v":0}]
[null,null,null,null,50812,52519,{"$f":"IF(AND(Bereken!$F$19>='Data kinderopvangtoeslag'!E22,Bereken!$F$19<='Data kinderopvangtoeslag'!F22),Bereken!$F$19,0)","v":0},0.93700000000000006,0.94799999999999995,{"$f":"IF(AND('Scenario''s'!$I$33>='Data kinderopvangtoeslag'!E22,'Scenario''s'!$I$33<='Data kinderopvangtoeslag'!F22),'Scenario''s'!$I$33,0)","v":0}]
[null,null,null,null,52520,54221,{"$f":"IF(AND(Bereken!$F$19>='Data kinderopvangtoeslag'!E23,Bereken!$F$19<='Data kinderopvangtoeslag'!F23),Bereken!$F$19,0)","v":0},0.93100000000000005,0.94499999999999995,{"$f":"IF(AND('Scenario''s'!$I$33>='Data kinderopvangtoeslag'!E23,'Scenario''s'!$I$33<='Data kinderopvangtoeslag'!F23),'Scenario''s'!$I$33,0)","v":0}]
[null,null,null,null,54222,55925,{"$f":"IF(AND(Bereken!$F$19>='Data kinderopvangtoeslag'!E24,Bereken!$F$19<='Data kinderopvangtoeslag'!F24),Bereken!$F$19,0)","v":0},0.92300000000000004,0.94499999999999995,{"$f":"IF(AND('Scenario''s'!$I$33>='Data kinderopvangtoeslag'!E24,'Scenario''s'!$I$33<='Data kinderopvangtoeslag'!F24),'Scenario''s'!$I$33,0)","v":0}]
[null,null,null,null,55926,57629,{"$f":"IF(AND(Bereken!$F$19>='Data kinderopvangtoeslag'!E25,Bereken!$F$19<='Data kinderopvangtoeslag'!F25),Bereken!$F$19,0)","v":0},0.91600000000000004,0.94499999999999995,{"$f":"IF(AND('Scenario''s'!$I$33>='Data kinderopvangtoeslag'!E25,'Scenario''s'!$I$33<='Data kinderopvangtoeslag'!F25),'Scenario''s'!$I$33,0)","v":0}]
[null,null,null,null,57630,59492,{"$f":"IF(AND(Bereken!$F$19>='Data kinderopvangtoeslag'!E26,Bereken!$F$19<='Data kinderopvangtoeslag'!F26),Bereken!$F$19,0)","v":0},0.90700000000000003,0.94499999999999995,{"$f":"IF(AND('Scenario''s'!$I$33>='Data kinderopvangtoeslag'!E26,'Scenario''s'!$I$33<='Data kinderopvangtoeslag'!F26),'Scenario''s'!$I$33,0)","v":0}]
[null,null,null,null,59493,63144,{"$f":"IF(AND(Bereken!$F$19>='Data kinderopvangtoeslag'!E27,Bereken!$F$19<='Data kinderopvangtoeslag'!F27),Bereken!$F$19,0)","v":0},0.89200000000000002,0.94499999999999995,{"$f":"IF(AND('Scenario''s'!$I$33>='Data kinderopvangtoeslag'!E27,'Scenario''s'!$I$33<='Data kinderopvangtoeslag'!F27),'Scenario''s'!$I$33,0)","v":0}]
[null,null,null,null,63145,66794,{"$f":"IF(AND(Bereken!$F$19>='Data kinderopvangtoeslag'!E28,Bereken!$F$19<='Data kinderopvangtoeslag'!F28),Bereken!$F$19,0)","v":0},0.88400000000000001,0.94099999999999995,{"$f":"IF(AND('Scenario''s'!$I$33>='Data kinderopvangtoeslag'!E28,'Scenario''s'!$I$33<='Data kinderopvangtoeslag'!F28),'Scenario''s'!$I$33,0)","v":0}]
[null,null,null,null,66795,70446,{"$f":"IF(AND(Bereken!$F$19>='Data kinderopvangtoeslag'!E29,Bereken!$F$19<='Data kinderopvangtoeslag'!F29),Bereken!$F$19,0)","v":0},0.873,0.93500000000000005,{"$f":"IF(AND('Scenario''s'!$I$33>='Data kinderopvangtoeslag'!E29,'Scenario''s'!$I$33<='Data kinderopvangtoeslag'!F29),'Scenario''s'!$I$33,0)","v":0}]
[null,null,null,null,70447,74100,{"$f":"IF(AND(Bereken!$F$19>='Data kinderopvangtoeslag'!E30,Bereken!$F$19<='Data kinderopvangtoeslag'!F30),Bereken!$F$19,0)","v":0},0.85,0.93100000000000005,{"$f":"IF(AND('Scenario''s'!$I$33>='Data kinderopvangtoeslag'!E30,'Scenario''s'!$I$33<='Data kinderopvangtoeslag'!F30),'Scenario''s'!$I$33,0)","v":0}]
[null,null,null,null,74101,77750,{"$f":"IF(AND(Bereken!$F$19>='Data kinderopvangtoeslag'!E31,Bereken!$F$19<='Data kinderopvangtoeslag'!F31),Bereken!$F$19,0)","v":0},0.82699999999999996,0.92800000000000005,{"$f":"IF(AND('Scenario''s'!$I$33>='Data kinderopvangtoeslag'!E31,'Scenario''s'!$I$33<='Data kinderopvangtoeslag'!F31),'Scenario''s'!$I$33,0)","v":0}]
[null,null,null,null,77751,81404,{"$f":"IF(AND(Bereken!$F$19>='Data kinderopvangtoeslag'!E32,Bereken!$F$19<='Data kinderopvangtoeslag'!F32),Bereken!$F$19,0)","v":0},0.80500000000000005,0.92100000000000004,{"$f":"IF(AND('Scenario''s'!$I$33>='Data kinderopvangtoeslag'!E32,'Scenario''s'!$I$33<='Data kinderopvangtoeslag'!F32),'Scenario''s'!$I$33,0)","v":0}]
[null,null,null,null,81405,85055,{"$f":"IF(AND(Bereken!$F$19>='Data kinderopvangtoeslag'!E33,Bereken!$F$19<='Data kinderopvangtoeslag'!F33),Bereken!$F$19,0)","v":0},0.78,0.91600000000000004,{"$f":"IF(AND('Scenario''s'!$I$33>='Data kinderopvangtoeslag'!E33,'Scenario''s'!$I$33<='Data kinderopvangtoeslag'!F33),'Scenario''s'!$I$33,0)","v":0}]
[null,null,null,null,85056,88707,{"$f":"IF(AND(Bereken!$F$19>='Data kinderopvangtoeslag'!E34,Bereken!$F$19<='Data kinderopvangtoeslag'!F34),Bereken!$F$19,0)","v":0},0.75700000000000001,0.91100000000000003,{"$f":"IF(AND('Scenario''s'!$I$33>='Data kinderopvangtoeslag'!E34,'Scenario''s'!$I$33<='Data kinderopvangtoeslag'!F34),'Scenario''s'!$I$33,0)","v":0}]
[null,null,null,null,88708,92360,{"$f":"IF(AND(Bereken!$F$19>='Data kinderopvangtoeslag'!E35,Bereken!$F$19<='Data kinderopvangtoeslag'!F35),Bereken!$F$19,0)","v":0},0.73499999999999999,0.90400000000000003,{"$f":"IF(AND('Scenario''s'!$I$33>='Data kinderopvangtoeslag'!E35,'Scenario''s'!$I$33<='Data kinderopvangtoeslag'!F35),'Scenario''s'!$I$33,0)","v":0}]
[null,null,null,null,92361,96010,{"$f":"IF(AND(Bereken!$F$19>='Data kinderopvangtoeslag'!E36,Bereken!$F$19<='Data kinderopvangtoeslag'!F36),Bereken!$F$19,0)","v":0},0.71099999999999997,0.89800000000000002,{"$f":"IF(AND('Scenario''s'!$I$33>='Data kinderopvangtoeslag'!E36,'Scenario''s'!$I$33<='Data kinderopvangtoeslag'!F36),'Scenario''s'!$I$33,0)","v":0}]
[null,null,null,null,96011,99667,{"$f":"IF(AND(Bereken!$F$19>='Data kinderopvangtoeslag'!E37,Bereken!$F$19<='Data kinderopvangtoeslag'!F37),Bereken!$F$19,0)","v":0},0.68899999999999995,0.89400000000000002,{"$f":"IF(AND('Scenario''s'!$I$33>='Data kinderopvangtoeslag'!E37,'Scenario''s'!$I$33<='Data kinderopvangtoeslag'!F37),'Scenario''s'!$I$33,0)","v":0}]
[null,null,null,null,99668,103318,{"$f":"IF(AND(Bereken!$F$19>='Data kinderopvangtoeslag'!E38,Bereken!$F$19<='Data kinderopvangtoeslag'!F38),Bereken!$F$19,0)","v":0},0.66400000000000003,0.89100000000000001,{"$f":"IF(AND('Scenario''s'!$I$33>='Data kinderopvangtoeslag'!E38,'Scenario''s'!$I$33<='Data kinderopvangtoeslag'!F38),'Scenario''s'!$I$33,0)","v":0}]
[null,null,null,null,103319,106968,{"$f":"IF(AND(Bereken!$F$19>='Data kinderopvangtoeslag'!E39,Bereken!$F$19<='Data kinderopvangtoeslag'!F39),Bereken!$F$19,0)","v":0},0.64100000000000001,0.88400000000000001,{"$f":"IF(AND('Scenario''s'!$I$33>='Data kinderopvangtoeslag'!E39,'Scenario''s'!$I$33<='Data kinderopvangtoeslag'!F39),'Scenario''s'!$I$33,0)","v":0}]
[null,null,null,null,106969,110621,{"$f":"IF(AND(Bereken!$F$19>='Data kinderopvangtoeslag'!E40,Bereken!$F$19<='Data kinderopvangtoeslag'!F40),Bereken!$F$19,0)","v":0},0.61899999999999999,0.88,{"$f":"IF(AND('Scenario''s'!$I$33>='Data kinderopvangtoeslag'!E40,'Scenario''s'!$I$33<='Data kinderopvangtoeslag'!F40),'Scenario''s'!$I$33,0)","v":0}]
[null,null,null,null,110622,114344,{"$f":"IF(AND(Bereken!$F$19>='Data kinderopvangtoeslag'!E41,Bereken!$F$19<='Data kinderopvangtoeslag'!F41),Bereken!$F$19,0)","v":0},0.59499999999999997,0.875,{"$f":"IF(AND('Scenario''s'!$I$33>='Data kinderopvangtoeslag'!E41,'Scenario''s'!$I$33<='Data kinderopvangtoeslag'!F41),'Scenario''s'!$I$33,0)","v":0}]
[null,null,null,null,114345,118086,{"$f":"IF(AND(Bereken!$F$19>='Data kinderopvangtoeslag'!E42,Bereken!$F$19<='Data kinderopvangtoeslag'!F42),Bereken!$F$19,0)","v":0},0.57399999999999995,0.86799999999999999,{"$f":"IF(AND('Scenario''s'!$I$33>='Data kinderopvangtoeslag'!E42,'Scenario''s'!$I$33<='Data kinderopvangtoeslag'!F42),'Scenario''s'!$I$33,0)","v":0}]
[null,null,null,null,118087,121825,{"$f":"IF(AND(Bereken!$F$19>='Data kinderopvangtoeslag'!E43,Bereken!$F$19<='Data kinderopvangtoeslag'!F43),Bereken!$F$19,0)","v":0},0.55300000000000005,0.86299999999999999,{"$f":"IF(AND('Scenario''s'!$I$33>='Data kinderopvangtoeslag'!E43,'Scenario''s'!$I$33<='Data kinderopvangtoeslag'!F43),'Scenario''s'!$I$33,0)","v":0}]
[null,null,null,null,121826,125565,{"$f":"IF(AND(Bereken!$F$19>='Data kinderopvangtoeslag'!E44,Bereken!$F$19<='Data kinderopvangtoeslag'!F44),Bereken!$F$19,0)","v":0},0.53200000000000003,0.85899999999999999,{"$f":"IF(AND('Scenario''s'!$I$33>='Data kinderopvangtoeslag'!E44,'Scenario''s'!$I$33<='Data kinderopvangtoeslag'!F44),'Scenario''s'!$I$33,0)","v":0}]
[null,null,null,null,125566,129303,{"$f":"IF(AND(Bereken!$F$19>='Data kinderopvangtoeslag'!E45,Bereken!$F$19<='Data kinderopvangtoeslag'!F45),Bereken!$F$19,0)","v":0},0.51,0.85599999999999998,{"$f":"IF(AND('Scenario''s'!$I$33>='Data kinderopvangtoeslag'!E45,'Scenario''s'!$I$33<='Data kinderopvangtoeslag'!F45),'Scenario''s'!$I$33,0)","v":0}]
[null,null,null,null,129304,133045,{"$f":"IF(AND(Bereken!$F$19>='Data kinderopvangtoeslag'!E46,Bereken!$F$19<='Data kinderopvangtoeslag'!F46),Bereken!$F$19,0)","v":0},0.49099999999999999,0.84899999999999998,{"$f":"IF(AND('Scenario''s'!$I$33>='Data kinderopvangtoeslag'!E46,'Scenario''s'!$I$33<='Data kinderopvangtoeslag'!F46),'Scenario''s'!$I$33,0)","v":0}]
[null,null,null,null,133046,136786,{"$f":"IF(AND(Bereken!$F$19>='Data kinderopvangtoeslag'!E47,Bereken!$F$19<='Data kinderopvangtoeslag'!F47),Bereken!$F$19,0)","v":0},0.47199999999999998,0.84299999999999997,{"$f":"IF(AND('Scenario''s'!$I$33>='Data kinderopvangtoeslag'!E47,'Scenario''s'!$I$33<='Data kinderopvangtoeslag'!F47),'Scenario''s'!$I$33,0)","v":0}]
[null,null,null,null,136787,140528,{"$f":"IF(AND(Bereken!$F$19>='Data kinderopvangtoeslag'!E48,Bereken!$F$19<='Data kinderopvangtoeslag'!F48),Bereken!$F$19,0)","v":0},0.45300000000000001,0.83899999999999997,{"$f":"IF(AND('Scenario''s'!$I$33>='Data kinderopvangtoeslag'!E48,'Scenario''s'!$I$33<='Data kinderopvangtoeslag'!F48),'Scenario''s'!$I$33,0)","v":0}]
[null,null,null,null,140529,144264,{"$f":"IF(AND(Bereken!$F$19>='Data kinderopvangtoeslag'!E49,Bereken!$F$19<='Data kinderopvangtoeslag'!F49),Bereken!$F$19,0)","v":0},0.433,0.83299999999999996,{"$f":"IF(AND('Scenario''s'!$I$33>='Data kinderopvangtoeslag'!E49,'Scenario''s'!$I$33<='Data kinderopvangtoeslag'!F49),'Scenario''s'!$I$33,0)","v":0}]
[null,null,null,null,144265,148003,{"$f":"IF(AND(Bereken!$F$19>='Data kinderopvangtoeslag'!E50,Bereken!$F$19<='Data kinderopvangtoeslag'!F50),Bereken!$F$19,0)","v":0},0.41299999999999998,0.82899999999999996,{"$f":"IF(AND('Scenario''s'!$I$33>='Data kinderopvangtoeslag'!E50,'Scenario''s'!$I$33<='Data kinderopvangtoeslag'!F50),'Scenario''s'!$I$33,0)","v":0}]
[null,null,null,null,148004,151746,{"$f":"IF(AND(Bereken!$F$19>='Data kinderopvangtoeslag'!E51,Bereken!$F$19<='Data kinderopvangtoeslag'!F51),Bereken!$F$19,0)","v":0},0.39300000000000002,0.82199999999999995,{"$f":"IF(AND('Scenario''s'!$I$33>='Data kinderopvangtoeslag'!E51,'Scenario''s'!$I$33<='Data kinderopvangtoeslag'!F51),'Scenario''s'!$I$33,0)","v":0}]
[null,null,null,null,151747,155484,{"$f":"IF(AND(Bereken!$F$19>='Data kinderopvangtoeslag'!E52,Bereken!$F$19<='Data kinderopvangtoeslag'!F52),Bereken!$F$19,0)","v":0},0.373,0.81599999999999995,{"$f":"IF(AND('Scenario''s'!$I$33>='Data kinderopvangtoeslag'!E52,'Scenario''s'!$I$33<='Data kinderopvangtoeslag'!F52),'Scenario''s'!$I$33,0)","v":0}]
[null,null,null,null,155485,159224,{"$f":"IF(AND(Bereken!$F$19>='Data kinderopvangtoeslag'!E53,Bereken!$F$19<='Data kinderopvangtoeslag'!F53),Bereken!$F$19,0)","v":0},0.35299999999999998,0.80600000000000005,{"$f":"IF(AND('Scenario''s'!$I$33>='Data kinderopvangtoeslag'!E53,'Scenario''s'!$I$33<='Data kinderopvangtoeslag'!F53),'Scenario''s'!$I$33,0)","v":0}]
[null,null,null,null,159225,162963,{"$f":"IF(AND(Bereken!$F$19>='Data kinderopvangtoeslag'!E54,Bereken!$F$19<='Data kinderopvangtoeslag'!F54),Bereken!$F$19,0)","v":0},0.33300000000000002,0.80300000000000005,{"$f":"IF(AND('Scenario''s'!$I$33>='Data kinderopvangtoeslag'!E54,'Scenario''s'!$I$33<='Data kinderopvangtoeslag'!F54),'Scenario''s'!$I$33,0)","v":0}]
[null,null,null,null,162964,166705,{"$f":"IF(AND(Bereken!$F$19>='Data kinderopvangtoeslag'!E55,Bereken!$F$19<='Data kinderopvangtoeslag'!F55),Bereken!$F$19,0)","v":0},0.33300000000000002,0.79500000000000004,{"$f":"IF(AND('Scenario''s'!$I$33>='Data kinderopvangtoeslag'!E55,'Scenario''s'!$I$33<='Data kinderopvangtoeslag'!F55),'Scenario''s'!$I$33,0)","v":0}]
[null,null,null,null,166706,170449,{"$f":"IF(AND(Bereken!$F$19>='Data kinderopvangtoeslag'!E56,Bereken!$F$19<='Data kinderopvangtoeslag'!F56),Bereken!$F$19,0)","v":0},0.33300000000000002,0.78600000000000003,{"$f":"IF(AND('Scenario''s'!$I$33>='Data kinderopvangtoeslag'!E56,'Scenario''s'!$I$33<='Data kinderopvangtoeslag'!F56),'Scenario''s'!$I$33,0)","v":0}]
[null,null,null,null,170450,174186,{"$f":"IF(AND(Bereken!$F$19>='Data kinderopvangtoeslag'!E57,Bereken!$F$19<='Data kinderopvangtoeslag'!F57),Bereken!$F$19,0)","v":0},0.33300000000000002,0.78,{"$f":"IF(AND('Scenario''s'!$I$33>='Data kinderopvangtoeslag'!E57,'Scenario''s'!$I$33<='Data kinderopvangtoeslag'!F57),'Scenario''s'!$I$33,0)","v":0}]
[null,null,null,null,174187,177926,{"$f":"IF(AND(Bereken!$F$19>='Data kinderopvangtoeslag'!E58,Bereken!$F$19<='Data kinderopvangtoeslag'!F58),Bereken!$F$19,0)","v":0},0.33300000000000002,0.77100000000000002,{"$f":"IF(AND('Scenario''s'!$I$33>='Data kinderopvangtoeslag'!E58,'Scenario''s'!$I$33<='Data kinderopvangtoeslag'!F58),'Scenario''s'!$I$33,0)","v":0}]
[null,null,null,null,177927,181663,{"$f":"IF(AND(Bereken!$F$19>='Data kinderopvangtoeslag'!E59,Bereken!$F$19<='Data kinderopvangtoeslag'!F59),Bereken!$F$19,0)","v":0},0.33300000000000002,0.76600000000000001,{"$f":"IF(AND('Scenario''s'!$I$33>='Data kinderopvangtoeslag'!E59,'Scenario''s'!$I$33<='Data kinderopvangtoeslag'!F59),'Scenario''s'!$I$33,0)","v":0}]
[null,null,null,null,181664,185406,{"$f":"IF(AND(Bereken!$F$19>='Data kinderopvangtoeslag'!E60,Bereken!$F$19<='Data kinderopvangtoeslag'!F60),Bereken!$F$19,0)","v":0},0.33300000000000002,0.75800000000000001,{"$f":"IF(AND('Scenario''s'!$I$33>='Data kinderopvangtoeslag'!E60,'Scenario''s'!$I$33<='Data kinderopvangtoeslag'!F60),'Scenario''s'!$I$33,0)","v":0}]
[null,null,null,null,185407,189147,{"$f":"IF(AND(Bereken!$F$19>='Data kinderopvangtoeslag'!E61,Bereken!$F$19<='Data kinderopvangtoeslag'!F61),Bereken!$F$19,0)","v":0},0.33300000000000002,0.751,{"$f":"IF(AND('Scenario''s'!$I$33>='Data kinderopvangtoeslag'!E61,'Scenario''s'!$I$33<='Data kinderopvangtoeslag'!F61),'Scenario''s'!$I$33,0)","v":0}]
[null,null,null,null,189148,192888,{"$f":"IF(AND(Bereken!$F$19>='Data kinderopvangtoeslag'!E62,Bereken!$F$19<='Data kinderopvangtoeslag'!F62),Bereken!$F$19,0)","v":0},0.33300000000000002,0.74399999999999999,{"$f":"IF(AND('Scenario''s'!$I$33>='Data kinderopvangtoeslag'!E62,'Scenario''s'!$I$33<='Data kinderopvangtoeslag'!F62),'Scenario''s'!$I$33,0)","v":0}]
[null,null,null,null,192889,196627,{"$f":"IF(AND(Bereken!$F$19>='Data kinderopvangtoeslag'!E63,Bereken!$F$19<='Data kinderopvangtoeslag'!F63),Bereken!$F$19,0)","v":0},0.33300000000000002,0.73399999999999999,{"$f":"IF(AND('Scenario''s'!$I$33>='Data kinderopvangtoeslag'!E63,'Scenario''s'!$I$33<='Data kinderopvangtoeslag'!F63),'Scenario''s'!$I$33,0)","v":0}]
[null,null,null,null,196628,200363,{"$f":"IF(AND(Bereken!$F$19>='Data kinderopvangtoeslag'!E64,Bereken!$F$19<='Data kinderopvangtoeslag'!F64),Bereken!$F$19,0)","v":0},0.33300000000000002,0.72899999999999998,{"$f":"IF(AND('Scenario''s'!$I$33>='Data kinderopvangtoeslag'!E64,'Scenario''s'!$I$33<='Data kinderopvangtoeslag'!F64),'Scenario''s'!$I$33,0)","v":0}]
[null,null,null,null,200364,204107,{"$f":"IF(AND(Bereken!$F$19>='Data kinderopvangtoeslag'!E65,Bereken!$F$19<='Data kinderopvangtoeslag'!F65),Bereken!$F$19,0)","v":0},0.33300000000000002,0.72199999999999998,{"$f":"IF(AND('Scenario''s'!$I$33>='Data kinderopvangtoeslag'!E65,'Scenario''s'!$I$33<='Data kinderopvangtoeslag'!F65),'Scenario''s'!$I$33,0)","v":0}]
[null,null,null,null,204108,207845,{"$f":"IF(AND(Bereken!$F$19>='Data kinderopvangtoeslag'!E66,Bereken!$F$19<='Data kinderopvangtoeslag'!F66),Bereken!$F$19,0)","v":0},0.33300000000000002,0.71399999999999997,{"$f":"IF(AND('Scenario''s'!$I$33>='Data kinderopvangtoeslag'!E66,'Scenario''s'!$I$33<='Data kinderopvangtoeslag'!F66),'Scenario''s'!$I$33,0)","v":0}]
[null,null,null,null,207846,211586,{"$f":"IF(AND(Bereken!$F$19>='Data kinderopvangtoeslag'!E67,Bereken!$F$19<='Data kinderopvangtoeslag'!F67),Bereken!$F$19,0)","v":0},0.33300000000000002,0.70699999999999996,{"$f":"IF(AND('Scenario''s'!$I$33>='Data kinderopvangtoeslag'!E67,'Scenario''s'!$I$33<='Data kinderopvangtoeslag'!F67),'Scenario''s'!$I$33,0)","v":0}]
[null,null,null,null,211587,215327,{"$f":"IF(AND(Bereken!$F$19>='Data kinderopvangtoeslag'!E68,Bereken!$F$19<='Data kinderopvangtoeslag'!F68),Bereken!$F$19,0)","v":0},0.33300000000000002,0.70099999999999996,{"$f":"IF(AND('Scenario''s'!$I$33>='Data kinderopvangtoeslag'!E68,'Scenario''s'!$I$33<='Data kinderopvangtoeslag'!F68),'Scenario''s'!$I$33,0)","v":0}]
[null,null,null,null,215328,219065,{"$f":"IF(AND(Bereken!$F$19>='Data kinderopvangtoeslag'!E69,Bereken!$F$19<='Data kinderopvangtoeslag'!F69),Bereken!$F$19,0)","v":0},0.33300000000000002,0.69299999999999995,{"$f":"IF(AND('Scenario''s'!$I$33>='Data kinderopvangtoeslag'!E69,'Scenario''s'!$I$33<='Data kinderopvangtoeslag'!F69),'Scenario''s'!$I$33,0)","v":0}]
[null,null,null,null,219066,222806,{"$f":"IF(AND(Bereken!$F$19>='Data kinderopvangtoeslag'!E70,Bereken!$F$19<='Data kinderopvangtoeslag'!F70),Bereken!$F$19,0)","v":0},0.33300000000000002,0.68500000000000005,{"$f":"IF(AND('Scenario''s'!$I$33>='Data kinderopvangtoeslag'!E70,'Scenario''s'!$I$33<='Data kinderopvangtoeslag'!F70),'Scenario''s'!$I$33,0)","v":0}]
[null,null,null,null,222807,226545,{"$f":"IF(AND(Bereken!$F$19>='Data kinderopvangtoeslag'!E71,Bereken!$F$19<='Data kinderopvangtoeslag'!F71),Bereken!$F$19,0)","v":0},0.33300000000000002,0.68,{"$f":"IF(AND('Scenario''s'!$I$33>='Data kinderopvangtoeslag'!E71,'Scenario''s'!$I$33<='Data kinderopvangtoeslag'!F71),'Scenario''s'!$I$33,0)","v":0}]
[null,null,null,null,226546,20000000,{"$f":"IF(AND(Bereken!$F$19>='Data kinderopvangtoeslag'!E72,Bereken!$F$19<='Data kinderopvangtoeslag'!F72),Bereken!$F$19,0)","v":0},0.33300000000000002,0.67100000000000004,{"$f":"IF(AND('Scenario''s'!$I$33>='Data kinderopvangtoeslag'!E72,'Scenario''s'!$I$33<='Data kinderopvangtoeslag'!F72),'Scenario''s'!$I$33,0)","v":0}]